fUSD/lending_fUSD_20250525
["ID","MTS","AMOUNT","RATE_DAILY","PERIOD"]
[362287870,1748159446464,-40134.86069386,0.00019998,2]
[362287871,1748159446736,-5309.92018935,0.00019998,2]
[362287872,1748159446748,-1269.016,0.00019998,2]
[362287873,1748159446760,-8372.40021065,0.00019998,2]
[362287874,1748159446898,-3537.75667868,0.00019998,2]
[362287875,1748159446909,-10728.79825984,0.00019998,2]
[362287876,1748159446958,-78043.34942346,0.00019998,2]
[362287902,1748159538917,175.33259406,0.00025,120]
[362287905,1748159548882,399.48,0.00013699,2]
[362287906,1748159565418,170.36,0.00021945,30]
[362287907,1748159768324,1073.785931,7.945e-05,2]
[362287908,1748159798404,150.0,0.000175,5]
[362287910,1748160260984,-263.76897487,0.000183,5]
[362287911,1748160263269,-250.0,0.000183,5]
[362287912,1748160266558,-193.85,0.000183,5]
[362287913,1748160268681,-151.0,0.000183,5]
[362287914,1748160270710,-153.93770231,0.000183,5]
[362287916,1748160323395,-173.224352,0.000181,5]
[362287917,1748160325585,-230.49,0.000181,5]
[362287918,1748160343009,250.0,0.00015,2]
[362287920,1748160386621,-293.15053478,0.000178,5]
[362287921,1748160390600,-292.54422548,0.00017,2]
[362287922,1748160393742,-7.45577452,0.00017,2]
[362287923,1748160415537,-242.54422548,0.000169,2]
[362287924,1748160417516,-167.46577452,0.000169,2]
[362287925,1748160426108,-263.68709826,0.000178,5]
[362287926,1748160449339,-163.32702802,0.000176,5]
[362287928,1748160451452,-280.76427763,0.000176,5]
[362287929,1748160453516,-327.47572237,0.000176,5]
[362287930,1748160454143,-784.06956204,0.000176,5]
[362287931,1748160511689,2032.0,0.000174,5]
[362287936,1748160632463,-242.500682,0.00018606,2]
[362287937,1748160632472,-250.0,0.00018653,2]
[362287938,1748160632482,-160.00114206,0.000187,2]
[362287939,1748160632624,-89.99885794,0.000187,2]
[362287940,1748160632637,-421.44007606,0.0001877,2]
[362287941,1748160632649,-1062.19496831,0.0001877,2]
[362287992,1748160638564,-300.0,0.00018769,2]
[362287993,1748160638574,-18526.83495563,0.0001877,2]
[362287994,1748160638583,-357.8,0.00018925,2]
[362287995,1748160638594,-751.88404468,0.00019,2]
[362287996,1748160638604,-305.04,0.00019,2]
[362287997,1748160638614,-350.0,0.00019,2]
[362287998,1748160638623,-152.0,0.00019085,3]
[362287999,1748160638634,-151.0,0.00019107,2]
[362288000,1748160638644,-207.4,0.00019107,2]
[362288001,1748160638653,-1200.0,0.00019118,2]
[362288002,1748160638663,-410.01,0.00019164,2]
[362288003,1748160638672,-150.0,0.00019178,2]
[362288004,1748160638682,-427.67,0.00019178,2]
[362288005,1748160638692,-150.0,0.00019178,2]
[362288006,1748160638701,-150.0,0.0001919,2]
[362288007,1748160638710,-150.0,0.000192,2]
[362288008,1748160638720,-2319.34,0.000192,2]
[362288009,1748160638730,-150.0,0.000192,2]
[362288010,1748160638740,-150.0,0.000192,2]
[362288011,1748160638749,-455.0,0.0001947,2]
[362288012,1748160638760,-761.76862163,0.00019487,2]
[362288013,1748160638770,-150.0,0.000195,2]
[362288014,1748160638779,-150.0,0.000195,2]
[362288015,1748160638788,-150.43,0.000195,2]
[362288017,1748160638798,-150.43,0.000195,2]
[362288018,1748160638808,-150.0,0.000195,2]
[362288019,1748160638818,-150.0,0.000195,2]
[362288020,1748160638827,-460.06,0.00019589,2]
[362288021,1748160638837,-460.06,0.00019589,2]
[362288022,1748160638846,-460.06,0.00019589,2]
[362288023,1748160638856,-460.06,0.00019589,2]
[362288024,1748160638866,-460.06,0.00019589,2]
[362288025,1748160638875,-164.506337,0.00019599,2]
[362288026,1748160638885,-2927.60254371,0.000197,2]
[362288027,1748160638897,-401.58589347,0.000197,2]
[362288028,1748160638908,-2232.3354909,0.000197,2]
[362288031,1748160638923,-490.81166384,0.000197,2]
[362288033,1748160638954,245.0,0.00013699,2]
[362288034,1748160638979,141.91141994,0.00013699,2]
[362288035,1748160639002,3.63858006,0.00013699,2]
[362288040,1748160640694,-0.01096616,0.000197,2]
[362288041,1748160640877,-785.65344192,0.000197,2]
[362288042,1748160640887,-214.54,0.000197,2]
[362288043,1748160640897,-150.83,0.00019726,2]
[362288044,1748160640906,-150.43,0.00019726,2]
[362288045,1748160640916,-150.0,0.00019726,2]
[362288046,1748160640925,-150.43,0.00019726,2]
[362288047,1748160640935,-153.34,0.00019726,2]
[362288048,1748160640944,-150.43,0.00019726,2]
[362288049,1748160640954,-300.15,0.00019726,2]
[362288050,1748160640964,-150.0,0.000198,2]
[362288051,1748160640973,-153.13,0.000198,2]
[362288052,1748160640983,-150.0,0.000198,2]
[362288053,1748160640992,-31555.4996087,0.000198,2]
[362288054,1748160641002,-740.9513,0.00019897,2]
[362288055,1748160641011,-766.00626411,0.00019897,2]
[362288056,1748160641021,-766.00626404,0.00019897,2]
[362288057,1748160641030,-766.00626404,0.00019898,2]
[362288058,1748160641039,-424.69100019,0.00019898,2]
[362288059,1748160641048,-161.53122312,0.00019898,2]
[362288060,1748160641058,-766.00626404,0.00019898,2]
[362288062,1748160641067,-424.69100016,0.00019898,2]
[362288069,1748160641281,-766.00626404,0.00019898,2]
[362288070,1748160641306,-1000.0,0.00019898,2]
[362288071,1748160641316,-424.69100016,0.00019898,2]
[362288072,1748160641326,-424.69100016,0.00019899,2]
[362288073,1748160641335,-766.00626404,0.00019899,2]
[362288074,1748160641344,-424.69100016,0.00019899,2]
[362288075,1748160641353,-766.00626404,0.00019899,2]
[362288076,1748160641362,-424.69100016,0.00019899,2]
[362288077,1748160641372,-424.69100016,0.00019899,2]
[362288078,1748160641381,-766.00626404,0.00019899,2]
[362288079,1748160641391,-424.69100016,0.000199,2]
[362288080,1748160641400,-766.00626404,0.000199,2]
[362288081,1748160641409,-424.69100016,0.000199,2]
[362288082,1748160641419,-150.43,0.000199,2]
[362288083,1748160641428,-150.43,0.000199,2]
[362288084,1748160641437,-170.24,0.000199,2]
[362288085,1748160641446,-150.0,0.000199,2]
[362288086,1748160641456,-310.82,0.000199,2]
[362288087,1748160641465,-150.43,0.000199,2]
[362288088,1748160641475,-150.0,0.000199,2]
[362288089,1748160641484,-150.0,0.000199,2]
[362288090,1748160641493,-424.69100016,0.000199,2]
[362288091,1748160641502,-766.00626404,0.000199,2]
[362288092,1748160641512,-316.14,0.00019988,2]
[362288093,1748160641521,-513.85834873,0.00019989,2]
[362288094,1748160641530,-436.125,0.0001999,2]
[362288095,1748160641540,-513.85834873,0.0001999,2]
[362288096,1748160641549,-513.85834873,0.0001999,2]
[362288097,1748160641563,-500.0,0.00019994,2]
[362288098,1748160641572,-298.6416272,0.00019994,2]
[362288099,1748160641582,-500.0,0.00019994,2]
[362288100,1748160641591,-372.67008147,0.00019994,2]
[362288101,1748160641601,-5910.16333205,0.00019995,2]
[362288102,1748160641611,-434.52562317,0.00019996,2]
[362288103,1748160641621,-447.52157423,0.00019996,2]
[362288104,1748160641631,-420.0,0.00019996,2]
[362288105,1748160641641,-438.81509791,0.00019996,2]
[362288106,1748160641650,-511.38530658,0.00019996,2]
[362288107,1748160641659,-434.53779762,0.00019996,2]
[362288108,1748160641673,-427.72194253,0.00019996,2]
[362288109,1748160641682,-206.87213994,0.00019996,2]
[362288110,1748160641691,-438.92450017,0.00019996,2]
[362288111,1748160641700,-423.75877964,0.00019996,2]
[362288112,1748160641709,-420.0,0.00019996,2]
[362288113,1748160641718,-436.04871368,0.00019996,2]
[362288114,1748160641727,-440.72082351,0.00019996,2]
[362288115,1748160641737,-420.0,0.00019996,2]
[362288116,1748160641747,-452.20458407,0.00019996,2]
[362288117,1748160641756,-423.10055181,0.00019996,2]
[362288118,1748160641765,-420.0,0.00019996,2]
[362288119,1748160641775,-433.38287466,0.00019996,2]
[362288120,1748160641784,-434.14314585,0.00019996,2]
[362288121,1748160641793,-439.15996533,0.00019996,2]
[362288122,1748160641803,-514.99891614,0.00019996,2]
[362288123,1748160641813,-448.0397211,0.00019996,2]
[362288124,1748160641822,-357.68886246,0.00019996,2]
[362288125,1748160641832,-442.78875397,0.00019996,2]
[362288126,1748160641841,-456.91653315,0.00019996,2]
[362288127,1748160641850,-420.0,0.00019996,2]
[362288128,1748160641860,-420.0,0.00019996,2]
[362288129,1748160641869,-420.0,0.00019996,2]
[362288130,1748160641879,-420.0,0.00019996,2]
[362288131,1748160641888,-426.68719335,0.00019996,2]
[362288132,1748160641897,-420.0,0.00019996,2]
[362288133,1748160641907,-420.0,0.00019996,2]
[362288134,1748160641917,-420.0,0.00019996,2]
[362288135,1748160641926,-455.69943349,0.00019996,2]
[362288136,1748160641936,-423.00577221,0.00019996,2]
[362288137,1748160641947,-420.0,0.00019996,2]
[362288138,1748160641957,-420.0,0.00019996,2]
[362288139,1748160641966,-422.59893218,0.00019996,2]
[362288140,1748160641978,-420.0,0.00019996,2]
[362288141,1748160641987,-420.0,0.00019996,2]
[362288142,1748160641998,-420.0,0.00019996,2]
[362288143,1748160642007,-420.0,0.00019996,2]
[362288144,1748160642016,-434.83569307,0.00019996,2]
[362288145,1748160642026,-2390.0002314,0.00019996,2]
[362288146,1748160642035,-53617.1791734,0.00019996,2]
[362288147,1748160642045,-436.4023653,0.00019996,2]
[362288148,1748160642054,-7063.2300252,0.00019996,2]
[362288149,1748160642063,-305.82682915,0.00019996,2]
[362288150,1748160642073,-420.0,0.00019996,2]
[362288151,1748160642082,-481.07207997,0.00019996,2]
[362288152,1748160642091,-420.0,0.00019996,2]
[362288153,1748160642100,-420.0,0.00019996,2]
[362288154,1748160642110,-5291.4832303,0.00019996,2]
[362288155,1748160642119,-454.13063335,0.00019996,2]
[362288156,1748160642129,-420.0,0.00019996,2]
[362288157,1748160642138,-420.0,0.00019996,2]
[362288158,1748160642148,-420.0,0.00019996,2]
[362288159,1748160642158,-434.14692057,0.00019997,2]
[362288160,1748160642167,-420.0,0.00019997,2]
[362288161,1748160642176,-420.0,0.00019997,2]
[362288162,1748160642186,-420.0,0.00019997,2]
[362288163,1748160642195,-420.0,0.00019997,2]
[362288164,1748160642204,-420.0,0.00019997,2]
[362288165,1748160642214,-420.0,0.00019997,2]
[362288166,1748160642223,-420.0,0.00019997,2]
[362288167,1748160642232,-343.47769829,0.00019997,2]
[362288168,1748160642242,-218.16572337,0.00019997,2]
[362288169,1748160642251,-433.94692519,0.00019997,2]
[362288170,1748160642260,-443.89060678,0.00019997,2]
[362288171,1748160642269,-430.01081595,0.00019997,2]
[362288172,1748160642279,-420.0,0.00019997,2]
[362288173,1748160642288,-450.74507522,0.00019997,2]
[362288174,1748160642298,-420.0,0.00019997,2]
[362288175,1748160642307,-520.78,0.00019997,2]
[362288176,1748160642317,-420.0,0.00019997,2]
[362288177,1748160642327,-420.0,0.00019997,2]
[362288178,1748160642336,-444.70196122,0.00019997,2]
[362288179,1748160642346,-451.03034228,0.00019997,2]
[362288180,1748160642355,-420.0,0.00019997,2]
[362288181,1748160642364,-420.0,0.00019997,2]
[362288182,1748160642373,-431.88823567,0.00019997,2]
[362288183,1748160642383,-420.0,0.00019997,2]
[362288184,1748160642392,-420.0,0.00019997,2]
[362288185,1748160642401,-420.0,0.00019997,2]
[362288186,1748160642411,-162.60475566,0.00019997,2]
[362288187,1748160642420,-162.17080985,0.00019997,2]
[362288188,1748160642429,-440.17776275,0.00019997,2]
[362288189,1748160642439,-420.0,0.00019997,2]
[362288190,1748160642448,-420.0,0.00019997,2]
[362288191,1748160642457,-420.0,0.00019997,2]
[362288192,1748160642466,-453.01836638,0.00019997,2]
[362288193,1748160642476,-420.0,0.00019997,2]
[362288194,1748160642485,-420.0,0.00019997,2]
[362288195,1748160642494,-420.0,0.00019997,2]
[362288196,1748160642503,-449.02888141,0.00019997,2]
[362288197,1748160642512,-442.10949624,0.00019997,2]
[362288198,1748160642522,-454.48926375,0.00019997,2]
[362288199,1748160642531,-447.23928678,0.00019997,2]
[362288200,1748160642540,-444.37270169,0.00019997,2]
[362288201,1748160642550,-171.25322479,0.00019997,2]
[362288202,1748160642562,-428.63749188,0.00019997,2]
[362288203,1748160642572,-444.81289088,0.00019997,2]
[362288204,1748160642581,-427.01061141,0.00019997,2]
[362288205,1748160642591,-435.75265931,0.00019997,2]
[362288206,1748160642600,-448.61840714,0.00019997,2]
[362288207,1748160642610,-441.41961472,0.00019997,2]
[362288208,1748160642619,-429.13530847,0.00019997,2]
[362288209,1748160642628,-349.41697748,0.00019997,2]
[362288210,1748160642640,-444.81684979,0.00019997,2]
[362288211,1748160642651,-433.63379828,0.00019997,2]
[362288212,1748160642660,-430.68412421,0.00019997,2]
[362288213,1748160642669,-437.31391399,0.00019997,2]
[362288214,1748160642679,-449.92454572,0.00019997,2]
[362288215,1748160642687,-432.281268,0.00019997,2]
[362288216,1748160642697,-435.67456543,0.00019997,2]
[362288217,1748160642706,-439.69394763,0.00019997,2]
[362288218,1748160642717,-463.77141465,0.00019997,2]
[362288219,1748160642727,-420.0,0.00019997,2]
[362288220,1748160642736,-420.0,0.00019997,2]
[362288221,1748160642746,-437.97655198,0.00019997,2]
[362288222,1748160642757,-437.67612058,0.00019997,2]
[362288223,1748160642767,-469.70207782,0.00019997,2]
[362288224,1748160642776,-198.88562943,0.00019997,2]
[362288225,1748160642786,-434.61059503,0.00019997,2]
[362288226,1748160642797,-430.02818679,0.00019997,2]
[362288227,1748160642806,-420.0,0.00019997,2]
[362288228,1748160642816,-439.04873508,0.00019997,2]
[362288229,1748160642826,-443.95738451,0.00019997,2]
[362288230,1748160642835,-453.83714635,0.00019997,2]
[362288231,1748160642846,-440.10341481,0.00019997,2]
[362288232,1748160642856,-420.0,0.00019997,2]
[362288233,1748160642867,-420.0,0.00019997,2]
[362288234,1748160642876,-445.48249606,0.00019997,2]
[362288235,1748160642886,-1286.98,0.00019997,2]
[362288236,1748160642896,-488.77695475,0.00019997,2]
[362288237,1748160642905,-456.75,0.00019997,2]
[362288238,1748160642914,-261.302275,0.00019997,2]
[362288239,1748160642924,-420.0,0.00019997,2]
[362288240,1748160642933,-420.0,0.00019997,2]
[362288241,1748160642942,-420.0,0.00019997,2]
[362288242,1748160642952,-420.0,0.00019997,2]
[362288243,1748160642962,-494.29973208,0.00019997,2]
[362288244,1748160642971,-420.0,0.00019997,2]
[362288245,1748160642980,-443.29912867,0.00019997,2]
[362288246,1748160642990,-746.04,0.00019997,2]
[362288247,1748160642999,-435.52311644,0.00019997,2]
[362288248,1748160643008,-2310.32,0.00019997,2]
[362288249,1748160643018,-448.95485805,0.00019997,2]
[362288250,1748160643027,-420.0,0.00019997,2]
[362288251,1748160643036,-486.17868223,0.00019997,2]
[362288252,1748160643045,-445.10506268,0.00019997,2]
[362288253,1748160643055,-1781.18,0.00019997,2]
[362288254,1748160643064,-437.52728666,0.00019997,2]
[362288255,1748160643073,-420.0,0.00019997,2]
[362288256,1748160643083,-420.0,0.00019997,2]
[362288257,1748160643092,-500.0,0.00019997,2]
[362288258,1748160643101,-456.95092588,0.00019997,2]
[362288259,1748160643111,-232.69792542,0.00019997,2]
[362288260,1748160643120,-420.0,0.00019997,2]
[362288261,1748160643130,-636.57,0.00019997,2]
[362288262,1748160643139,-232.45716507,0.00019997,2]
[362288263,1748160643149,-420.0,0.00019997,2]
[362288264,1748160643158,-442.2781237,0.00019997,2]
[362288265,1748160643168,-959.31,0.00019997,2]
[362288266,1748160643178,-473.06033172,0.00019997,2]
[362288267,1748160643187,-420.0,0.00019997,2]
[362288268,1748160643197,-426.04757075,0.00019997,2]
[362288269,1748160643206,-420.0,0.00019997,2]
[362288271,1748160643215,-466.60756163,0.00019997,2]
[362288272,1748160643225,-420.0,0.00019997,2]
[362288273,1748160643234,-497.54975929,0.00019997,2]
[362288274,1748160643243,-400.05,0.00019997,2]
[362288275,1748160643253,-1140.72,0.00019997,2]
[362288276,1748160643262,-420.0,0.00019997,2]
[362288277,1748160643271,-2425.64,0.00019997,2]
[362288278,1748160643280,-420.0,0.00019997,2]
[362288279,1748160643290,-420.0,0.00019997,2]
[362288280,1748160643299,-420.0,0.00019997,2]
[362288281,1748160643309,-420.0,0.00019997,2]
[362288282,1748160643318,-420.0,0.00019997,2]
[362288283,1748160643327,-696.96,0.00019997,2]
[362288284,1748160643337,-420.0,0.00019997,2]
[362288285,1748160643346,-420.0,0.00019997,2]
[362288286,1748160643355,-157.94595994,0.00019997,2]
[362288287,1748160643365,-420.0,0.00019997,2]
[362288288,1748160643374,-486.51051763,0.00019997,2]
[362288289,1748160643383,-296.03604232,0.00019997,2]
[362288290,1748160643393,-420.0,0.00019997,2]
[362288292,1748160643406,-420.0,0.00019997,2]
[362288293,1748160643418,-420.0,0.00019997,2]
[362288296,1748160643431,-420.0,0.00019997,2]
[362288298,1748160643443,-420.0,0.00019997,2]
[362288300,1748160643456,-420.0,0.00019997,2]
[362288302,1748160643466,-420.0,0.00019997,2]
[362288304,1748160643476,-420.0,0.00019997,2]
[362288306,1748160643488,-456.31941843,0.00019997,2]
[362288309,1748160643500,-420.0,0.00019997,2]
[362288310,1748160643511,-420.0,0.00019997,2]
[362288311,1748160643523,-420.0,0.00019997,2]
[362288312,1748160643535,-420.0,0.00019997,2]
[362288313,1748160643547,-505.82,0.00019997,2]
[362288314,1748160643561,-420.0,0.00019997,2]
[362288315,1748160643572,-499.75,0.00019997,2]
[362288316,1748160643583,-420.0,0.00019997,2]
[362288317,1748160643594,-432.34169157,0.00019997,2]
[362288318,1748160643606,-420.0,0.00019997,2]
[362288319,1748160643616,-501.40658506,0.00019997,2]
[362288320,1748160643626,-420.0,0.00019997,2]
[362288321,1748160643640,-420.0,0.00019997,2]
[362288322,1748160643653,-420.0,0.00019997,2]
[362288323,1748160643665,-420.0,0.00019997,2]
[362288324,1748160643676,-420.0,0.00019997,2]
[362288325,1748160643687,-504.6,0.00019997,2]
[362288326,1748160643699,-444.10816317,0.00019997,2]
[362288327,1748160643711,-433.18402141,0.00019997,2]
[362288328,1748160643723,-420.0,0.00019997,2]
[362288329,1748160643736,-886.91,0.00019997,2]
[362288330,1748160643748,-420.0,0.00019997,2]
[362288331,1748160643759,-420.0,0.00019997,2]
[362288332,1748160643771,-420.0,0.00019997,2]
[362288333,1748160643783,-439.07024852,0.00019997,2]
[362288334,1748160643796,-420.0,0.00019997,2]
[362288335,1748160643808,-420.0,0.00019997,2]
[362288336,1748160643820,-1055.07,0.00019997,2]
[362288337,1748160643831,-437.56001144,0.00019997,2]
[362288338,1748160643843,-1953.85,0.00019997,2]
[362288339,1748160643855,-429.96875676,0.00019997,2]
[362288340,1748160643866,-420.0,0.00019997,2]
[362288341,1748160643878,-420.0,0.00019997,2]
[362288342,1748160643889,-449.10016462,0.00019997,2]
[362288343,1748160643901,-441.01375068,0.00019997,2]
[362288345,1748160643914,-493.61468019,0.00019997,2]
[362288347,1748160643926,-420.0,0.00019997,2]
[362288348,1748160643938,-420.0,0.00019997,2]
[362288349,1748160643951,-536.13291299,0.00019997,2]
[362288350,1748160643962,-432.71895564,0.00019997,2]
[362288351,1748160643973,-420.0,0.00019997,2]
[362288352,1748160643984,-420.0,0.00019997,2]
[362288353,1748160643994,-502.70773156,0.00019997,2]
[362288354,1748160644005,-420.0,0.00019997,2]
[362288355,1748160644015,-717.05,0.00019997,2]
[362288356,1748160644027,-420.0,0.00019997,2]
[362288357,1748160644041,-459.06423507,0.00019997,2]
[362288358,1748160644053,-420.0,0.00019997,2]
[362288359,1748160644063,-511.23,0.00019997,2]
[362288360,1748160644073,-420.0,0.00019997,2]
[362288361,1748160644083,-447.02565083,0.00019997,2]
[362288362,1748160644094,-420.0,0.00019997,2]
[362288363,1748160644104,-420.0,0.00019997,2]
[362288364,1748160644116,-179.94035228,0.00019997,2]
[362288365,1748160644128,-424.92926523,0.00019997,2]
[362288366,1748160644139,-420.0,0.00019997,2]
[362288367,1748160644149,-440.31182565,0.00019997,2]
[362288368,1748160644159,-428.94107733,0.00019997,2]
[362288369,1748160644169,-420.0,0.00019997,2]
[362288370,1748160644180,-1355.18,0.00019997,2]
[362288371,1748160644190,-420.0,0.00019997,2]
[362288372,1748160644201,-438.78518821,0.00019997,2]
[362288373,1748160644212,-500.0,0.00019997,2]
[362288374,1748160644223,-474.21,0.00019997,2]
[362288375,1748160644235,-420.0,0.00019997,2]
[362288376,1748160644246,-420.0,0.00019997,2]
[362288377,1748160644257,-420.0,0.00019997,2]
[362288378,1748160644267,-434.7546711,0.00019997,2]
[362288379,1748160644279,-420.0,0.00019997,2]
[362288380,1748160644289,-420.0,0.00019997,2]
[362288381,1748160644300,-420.0,0.00019997,2]
[362288382,1748160644311,-420.0,0.00019997,2]
[362288383,1748160644322,-434.8115996,0.00019997,2]
[362288384,1748160644334,-518.3628162,0.00019997,2]
[362288385,1748160644345,-420.0,0.00019997,2]
[362288386,1748160644359,-420.0,0.00019997,2]
[362288387,1748160644370,-420.0,0.00019997,2]
[362288388,1748160644381,-427.5549772,0.00019997,2]
[362288389,1748160644392,-571.28,0.00019997,2]
[362288390,1748160644403,-439.14884243,0.00019997,2]
[362288391,1748160644414,-436.69330686,0.00019997,2]
[362288392,1748160644425,-420.0,0.00019997,2]
[362288393,1748160644436,-448.70037304,0.00019997,2]
[362288394,1748160644446,-509.58434721,0.00019997,2]
[362288395,1748160644458,-420.0,0.00019997,2]
[362288396,1748160644468,-427.22468896,0.00019997,2]
[362288397,1748160644479,-454.41548751,0.00019997,2]
[362288398,1748160644490,-499.36850226,0.00019997,2]
[362288399,1748160644501,-432.1392372,0.00019997,2]
[362288400,1748160644513,-429.66479471,0.00019997,2]
[362288401,1748160644524,-420.0,0.00019997,2]
[362288402,1748160644535,-420.0,0.00019997,2]
[362288403,1748160644546,-420.0,0.00019997,2]
[362288404,1748160644559,-430.38041885,0.00019997,2]
[362288405,1748160644570,-420.0,0.00019997,2]
[362288406,1748160644581,-420.0,0.00019997,2]
[362288407,1748160644592,-499.98,0.00019998,2]
[362288408,1748160644603,-430.74402347,0.00019998,2]
[362288409,1748160644614,-420.0,0.00019998,2]
[362288410,1748160644624,-346.03803955,0.00019998,2]
[362288411,1748160644635,-420.0,0.00019998,2]
[362288412,1748160644647,-507.15103195,0.00019998,2]
[362288413,1748160644658,-420.0,0.00019998,2]
[362288414,1748160644668,-420.0,0.00019998,2]
[362288415,1748160644679,-420.0,0.00019998,2]
[362288416,1748160644690,-420.0,0.00019998,2]
[362288417,1748160644701,-420.0,0.00019998,2]
[362288418,1748160644711,-420.0,0.00019998,2]
[362288419,1748160644722,-190.70967599,0.00019998,2]
[362288420,1748160644733,-430.60602757,0.00019998,2]
[362288421,1748160644744,-420.0,0.00019998,2]
[362288422,1748160644755,-452.03090677,0.00019998,2]
[362288423,1748160644766,-420.0,0.00019998,2]
[362288424,1748160644776,-460.3345046,0.00019998,2]
[362288425,1748160644787,-420.0,0.00019998,2]
[362288426,1748160644798,-420.0,0.00019998,2]
[362288427,1748160644808,-420.0,0.00019998,2]
[362288428,1748160644820,-420.0,0.00019998,2]
[362288429,1748160644830,-420.0,0.00019998,2]
[362288430,1748160644841,-420.0,0.00019998,2]
[362288431,1748160644852,-420.0,0.00019998,2]
[362288432,1748160644863,-420.0,0.00019998,2]
[362288433,1748160644874,-420.0,0.00019998,2]
[362288434,1748160644884,-420.0,0.00019998,2]
[362288435,1748160644896,-420.0,0.00019998,2]
[362288436,1748160644907,-432.30617889,0.00019998,2]
[362288437,1748160644918,-420.0,0.00019998,2]
[362288438,1748160644929,-420.0,0.00019998,2]
[362288439,1748160644940,-420.0,0.00019998,2]
[362288440,1748160644951,-420.0,0.00019998,2]
[362288441,1748160644962,-420.0,0.00019998,2]
[362288442,1748160644973,-420.0,0.00019998,2]
[362288443,1748160644984,-420.0,0.00019998,2]
[362288444,1748160644995,-554.01111168,0.00019998,2]
[362288445,1748160645006,-420.0,0.00019998,2]
[362288446,1748160645017,-535.28549879,0.00019998,2]
[362288447,1748160645027,-420.0,0.00019998,2]
[362288448,1748160645038,-321.11119785,0.00019998,2]
[362288449,1748160645049,-420.0,0.00019998,2]
[362288450,1748160645060,-420.0,0.00019998,2]
[362288451,1748160645070,-420.0,0.00019998,2]
[362288452,1748160645081,-420.0,0.00019998,2]
[362288453,1748160645091,-420.0,0.00019998,2]
[362288454,1748160645102,-420.0,0.00019998,2]
[362288455,1748160645112,-420.0,0.00019998,2]
[362288456,1748160645123,-420.0,0.00019998,2]
[362288457,1748160645134,-520.78,0.00019998,2]
[362288458,1748160645145,-420.0,0.00019998,2]
[362288459,1748160645156,-520.78,0.00019998,2]
[362288460,1748160645167,-420.0,0.00019998,2]
[362288461,1748160645178,-420.0,0.00019998,2]
[362288462,1748160645189,-429.71654235,0.00019998,2]
[362288463,1748160645199,-420.0,0.00019998,2]
[362288464,1748160645210,-400.0,0.00019998,2]
[362288465,1748160645221,-420.0,0.00019998,2]
[362288466,1748160645231,-433.7745908,0.00019998,2]
[362288467,1748160645241,-444.36968458,0.00019998,2]
[362288468,1748160645252,-420.0,0.00019998,2]
[362288469,1748160645262,-420.0,0.00019998,2]
[362288470,1748160645273,-514.04951722,0.00019998,2]
[362288471,1748160645283,-420.0,0.00019998,2]
[362288472,1748160645294,-420.0,0.00019998,2]
[362288473,1748160645305,-370.0,0.00019998,2]
[362288474,1748160645315,-420.0,0.00019998,2]
[362288475,1748160645326,-499.99,0.00019998,2]
[362288476,1748160645336,-521.8294532,0.00019998,2]
[362288477,1748160645348,-435.09489298,0.00019998,2]
[362288478,1748160645359,-420.0,0.00019998,2]
[362288479,1748160645370,-420.0,0.00019998,2]
[362288480,1748160645381,-420.0,0.00019998,2]
[362288481,1748160645392,-420.0,0.00019998,2]
[362288482,1748160645402,-420.0,0.00019998,2]